Workbook

Sheet 2月
A1: 2023年2月各考试点考生通过率统计表
A2: 培训机构 工种 | B2: 江门市安全生产知识考试点（江门市安信职业安全培训有限公司） | E2: 开平四维考试点（广东四维培训有限公司） | H2: 开平市安全生产管理协会 | K2: 江门市技师学院 | N2: 江门市新会机电职业技术学校 | Q2: 江门市新会技师学院 | T2: 鹤山市新供销协力教育咨询有限公司 | W2: 全市合计
B3: 实考人数 | C3: 合格人数 | D3: 通过率 | E3: 实考人数 | F3: 合格人数 | G3: 通过率 | H3: 实考人数 | I3: 合格人数 | J3: 通过率 | K3: 实考人数 | L3: 合格人数 | M3: 通过率 | N3: 实考人数 | O3: 合格人数 | P3: 通过率 | Q3: 实考人数 | R3: 合格人数 | S3: 通过率 | T3: 实考人数 | U3: 合格人数 | V3: 通过率 | W3: 实考人数 | X3: 合格人数 | Y3: 通过率
A4: 低压电工初训 | B4: 220 | C4: 165 | D4: =C4/B4 -> 75.0% | E4: 28 | F4: 24 | G4: =F4/E4 -> 85.7% | T4: 46 | U4: 35 | V4: =U4/T4 -> 76.1% | W4: =B4+E4+H4+K4+N4+Q4+T4 -> 294 | X4: =C4+F4+I4+L4+O4+R4+U4 -> 224 | Y4: =X4/W4 -> 76.2%
A5: 高压电工初训 | E5: 20 | F5: 14 | G5: 70.0% | W5: 20 | X5: 14 | Y5: 70.0%
A6: 电力电缆初训 | E6: 5 | F6: 2 | G6: 40.0% | W6: 5 | X6: 2 | Y6: 40.0%
A7: 熔化焊接与热切割初训 | B7: 222 | C7: 178 | D7: =C7/B7 -> 80.2% | T7: 58 | U7: 39 | V7: =U7/T7 -> 67.2% | W7: 280 | X7: 217 | Y7: 77.5%
A8: 高处安装维护拆除初训 | B8: 128 | C8: 105 | D8: 82.0% | E8: 77 | F8: 73 | G8: =F8/E8 -> 94.8% | W8: 205 | X8: 178 | Y8: 86.8%
A9: 特种作业初训合计 | B9: =SUM(B4:B8) -> 570 | C9: =SUM(C4:C8) -> 448 | D9: 78.6% | E9: =SUM(E4:E8) -> 130 | F9: =SUM(F4:F8) -> 113 | G9: 86.9% | T9: =SUM(T4:T8) -> 104 | U9: =SUM(U4:U8) -> 74 | V9: =U9/T9 -> 71.2% | W9: 804 | X9: 635 | Y9: 79.0%
A10: 低压电工复训 | B10: 613 | C10: 595 | D10: 97.1% | E10: 50 | F10: 48 | G10: =F10/E10 -> 96.0% | T10: 25 | U10: 22 | V10: =U10/T10 -> 88.0% | W10: 688 | X10: 665 | Y10: 96.7%
A11: 高压电工复训 | B11: 83 | C11: 78 | D11: =C11/B11 -> 94.0% | E11: 32 | F11: 28 | G11: 87.5% | W11: 115 | X11: 106 | Y11: 92.2%
A12: 熔化焊接与热切割复训 | B12: 120 | C12: 108 | D12: 90.0% | E12: 9 | F12: 9 | G12: 100.0% | W12: 129 | X12: 117 | Y12: 90.7%
A13: 钎焊复训
A14: 高处安装维护拆除复训 | B14: 68 | C14: 60 | D14: 88.2% | E14: 39 | F14: 38 | G14: 97.4% | W14: 107 | X14: 98 | Y14: 91.6%
A15: 登高架设复训 | B15: 2 | C15: 2 | D15: 100.0% | W15: 2 | X15: 2 | Y15: 100.0%
A16: 制冷与空调运行操作复训
A17: 制冷与空调安装修理复训 | B17: 1 | C17: 1 | D17: =C17/B17 -> 100.0% | W17: 1 | X17: 1 | Y17: 100.0%
A18: 矿山安检复训
A19: 电力电缆复训 | B19: 1 | C19: 1 | D19: =C19/B19 -> 100.0% | E19: 1 | F19: 1 | G19: 100.0% | W19: 2 | X19: 2 | Y19: 100.0%
A20: 电气试验复训 | B20: 3 | C20: 3 | D20: 100.0% | E20: 4 | F20: 4 | G20: 100.0% | W20: 7 | X20: 7 | Y20: 100.0%
A21: 继电保护复训 | B21: 1 | C21: 1 | D21: 100.0% | E21: 1 | F21: 0 | G21: 0.0% | W21: 2 | X21: 1 | Y21: 50.0%
A22: 危化操作工复训 | B22: 47 | C22: 46 | D22: 97.9% | W22: 47 | X22: 46 | Y22: 97.9%
A23: 特种作业复训合计 | B23: =SUM(B10:B22) -> 939 | C23: 895 | D23: =C23/B23 -> 95.3% | E23: 136 | F23: 128 | G23: 94.1% | T23: =SUM(T10:T22) -> 25 | U23: =SUM(U10:U22) -> 22 | V23: =U23/T23 -> 88.0% | W23: 1100 | X23: 1045 | Y23: =X23/W23 -> 95.0%
A24: 特种作业人员合计 | B24: =B9+B23 -> 1509 | C24: =C9+C23 -> 1343 | D24: 89.0% | E24: =E9+E23 -> 266 | F24: =F9+F23 -> 241 | G24: 90.6% | T24: =T9+T23 -> 129 | U24: =U9+U23 -> 96 | V24: =U24/T24 -> 74.4% | W24: 1904 | X24: 1680 | Y24: 88.2%
A25: 烟花爆竹经营负责人初训 | B25: 6 | C25: 3 | D25: 50.0% | E25: 2 | F25: 1 | G25: 50.0% | W25: 8 | X25: 4 | Y25: 50.0%
A26: 危化生产负责人初训 | B26: 2 | C26: 2 | D26: 100.0% | W26: 2 | X26: 2 | Y26: 100.0%
A27: 危化经营负责人初训 | B27: 7 | C27: 7 | D27: 100.0% | W27: 7 | X27: 7 | Y27: 100.0%
A28: 非煤矿山负责人初训
A29: 金属冶炼负责人初训 | B29: 4 | C29: 4 | D29: =C29/B29 -> 100.0% | W29: 4 | X29: 4 | Y29: 100.0%
A30: 高危行业负责人初训合计 | B30: =SUM(B25:B29) -> 19 | C30: 16 | D30: 84.2% | E30: 2 | F30: 1 | G30: =F30/E30 -> 50.0% | W30: 21 | X30: 17 | Y30: =X30/W30 -> 81.0%
A31: 烟花爆竹经营负责人复训
A32: 危化生产负责人复训 | B32: 6 | C32: 6 | D32: 100.0% | E32: 1 | F32: 1 | G32: =F32/E32 -> 100.0% | W32: 7 | X32: 7 | Y32: 100.0%
A33: 危化经营负责人复训 | B33: 20 | C33: 19 | D33: 95.0% | W33: 20 | X33: 19 | Y33: 95.0%
A34: 非煤矿山负责人复训 | B34: 1 | C34: 1 | D34: 100.0% | W34: 1 | X34: 1 | Y34: 100.0%
A35: 金属冶炼负责人复训 | B35: 3 | C35: 3 | D35: 100.0% | W35: 3 | X35: 3 | Y35: 100.0%
A36: 高危行业负责人复训合计 | B36: =SUM(B31:B35) -> 30 | C36: 29 | D36: 96.7% | E36: 1 | F36: 1 | G36: 100.0% | W36: 31 | X36: 30 | Y36: =X36/W36 -> 96.8%
A37: 高危行业主要负责人合计 | B37: =B30+B36 -> 49 | C37: 45 | D37: 91.8% | E37: 3 | F37: 2 | G37: 66.7% | W37: 52 | X37: 47 | Y37: 90.4%
A38: 烟花爆竹经营安管初训 | B38: 4 | C38: 2 | D38: 50.0% | E38: 2 | F38: 2 | G38: 100.0% | W38: 6 | X38: 4 | Y38: 66.7%
A39: 危化生产安管初训 | B39: 7 | C39: 6 | D39: 85.7% | W39: 7 | X39: 6 | Y39: 85.7%
A40: 危化经营安管初训 | B40: 28 | C40: 24 | D40: 85.7% | W40: 28 | X40: 24 | Y40: 85.7%
A41: 非煤矿山安管初训
A42: 金属冶炼安管初训 | B42: 18 | C42: 15 | D42: =C42/B42 -> 83.3% | W42: 18 | X42: 15 | Y42: 83.3%
A43: 高危行业安管初训合计 | B43: =SUM(B38:B42) -> 57 | C43: 47 | D43: 82.5% | E43: 2 | F43: 2 | G43: =F43/E43 -> 100.0% | W43: 59 | X43: 49 | Y43: =X43/W43 -> 83.1%
A44: 烟花爆竹经营安管复训
A45: 危化生产安管复训 | B45: 10 | C45: 10 | D45: 100.0% | E45: 2 | F45: 2 | G45: =F45/E45 -> 100.0% | W45: 12 | X45: 12 | Y45: 100.0%
A46: 危化经营安管复训 | B46: 38 | C46: 33 | D46: 86.8% | W46: 38 | X46: 33 | Y46: 86.8%
A47: 非煤矿山安管复训 | B47: 1 | C47: 1 | D47: 100.0% | W47: 1 | X47: 1 | Y47: 100.0%
A48: 金属冶炼安管复训 | B48: 5 | C48: 5 | D48: 100.0% | W48: 5 | X48: 5 | Y48: 100.0%
A49: 高危行业安管复训合计 | B49: =SUM(B44:B48) -> 54 | C49: 49 | D49: 90.7% | E49: 2 | F49: 2 | G49: =F49/E49 -> 100.0% | W49: 56 | X49: 51 | Y49: =X49/W49 -> 91.1%
A50: 高危行业安管人员合计 | B50: =B43+B49 -> 111 | C50: 96 | D50: 86.5% | E50: 4 | F50: 4 | G50: 100.0% | W50: 115 | X50: 100 | Y50: 87.0%
A51: 高危行业负责人安管合计 | B51: =B37+B50 -> 160 | C51: 141 | D51: 88.1% | E51: 7 | F51: 6 | G51: 85.7% | W51: 167 | X51: 147 | Y51: 88.0%
A52: 全工种合计 | B52: =B24+B51 -> 1669 | C52: =C24+C51 -> 1484 | D52: 88.9% | E52: =E24+E51 -> 273 | F52: =F24+F51 -> 247 | G52: 90.5% | T52: =T24+T51 -> 129 | U52: =U24+U51 -> 96 | V52: =U52/T52 -> 74.4% | W52: 2071 | X52: 1827 | Y52: 88.2%
A53: 备注： 1.考试点名称以全国安全生产培训考试信息管理系统记录为准，按系统顺序排序； 2.实考人数=报考总人数-正考补考均缺考人数-考试违规被取消成绩人数； 3.仅统计已完成考试者，还有补考机会者不统计。

Sheet 3月
A1: 2023年3月各考试点考生通过率统计表
A2: 培训机构 工种 | B2: 江门市安全生产知识考试点（江门市安信职业安全培训有限公司） | E2: 开平四维考试点（广东四维培训有限公司） | H2: 开平市安全生产管理协会 | K2: 江门市技师学院 | N2: 江门市新会机电职业技术学校 | Q2: 江门市新会技师学院 | T2: 鹤山市新供销协力教育咨询有限公司 | W2: 全市合计
B3: 实考人数 | C3: 合格人数 | D3: 通过率 | E3: 实考人数 | F3: 合格人数 | G3: 通过率 | H3: 实考人数 | I3: 合格人数 | J3: 通过率 | K3: 实考人数 | L3: 合格人数 | M3: 通过率 | N3: 实考人数 | O3: 合格人数 | P3: 通过率 | Q3: 实考人数 | R3: 合格人数 | S3: 通过率 | T3: 实考人数 | U3: 合格人数 | V3: 通过率 | W3: 实考人数 | X3: 合格人数 | Y3: 通过率
A4: 低压电工初训 | B4: 254 | C4: 155 | D4: =C4/B4 -> 61.0% | N4: 134 | O4: 110 | P4: =O4/N4 -> 82.1% | T4: 100 | U4: 64 | V4: =U4/T4 -> 64.0% | W4: =B4+E4+H4+K4+N4+Q4+T4 -> 488 | X4: 329 | Y4: =X4/W4 -> 67.4%
A5: 高压电工初训 | E5: 67 | F5: 61 | G5: =F5/E5 -> 91.0% | W5: 67 | X5: 61 | Y5: 91.0%
A6: 电力电缆初训 | E6: 1 | F6: 1 | G6: 100.0% | W6: 1 | X6: 1 | Y6: 100.0%
A7: 熔化焊接与热切割初训 | B7: 144 | C7: 122 | D7: =C7/B7 -> 84.7% | T7: 60 | U7: 51 | V7: =U7/T7 -> 85.0% | W7: 204 | X7: 173 | Y7: 84.8%
A8: 高处安装维护拆除初训 | B8: 173 | C8: 147 | D8: 85.0% | E8: 90 | F8: 86 | G8: =F8/E8 -> 95.6% | T8: 51 | U8: 47 | V8: =U8/T8 -> 92.2% | W8: 314 | X8: 280 | Y8: 89.2%
A9: 特种作业初训合计 | B9: =SUM(B4:B8) -> 571 | C9: =SUM(C4:C8) -> 424 | D9: 74.3% | E9: =SUM(E4:E8) -> 158 | F9: =SUM(F4:F8) -> 148 | G9: 93.7% | N9: =SUM(N4:N8) -> 134 | O9: =SUM(O4:O8) -> 110 | P9: =O9/N9 -> 82.1% | T9: =SUM(T4:T8) -> 211 | U9: =SUM(U4:U8) -> 162 | V9: =U9/T9 -> 76.8% | W9: 1074 | X9: 844 | Y9: 78.6%
A10: 低压电工复训 | B10: 331 | C10: 322 | D10: 97.3% | E10: 100 | F10: 97 | G10: 97.0% | N10: 107 | O10: 105 | P10: =O10/N10 -> 98.1% | T10: 5 | U10: 5 | V10: =U10/T10 -> 100.0% | W10: 543 | X10: 529 | Y10: 97.4%
A11: 高压电工复训 | B11: 78 | C11: 68 | D11: 87.2% | E11: 13 | F11: 11 | G11: 84.6% | N11: 13 | O11: 12 | P11: =O11/N11 -> 92.3% | W11: 104 | X11: 91 | Y11: 87.5%
A12: 熔化焊接与热切割复训 | B12: 77 | C12: 77 | D12: 100.0% | E12: 7 | F12: 6 | G12: 85.7% | N12: 10 | O12: 10 | P12: 100.0% | T12: 1 | U12: 1 | V12: =U12/T12 -> 100.0% | W12: 95 | X12: 94 | Y12: 98.9%
A13: 钎焊复训 | B13: 1 | C13: 1 | D13: 100.0% | W13: =B13+E13+H13+K13+N13+Q13+T13 -> 1 | X13: =C13+F13+I13+L13+O13+R13+U13 -> 1 | Y13: 100.0%
A14: 高处安装维护拆除复训 | B14: 35 | C14: 33 | D14: 94.3% | E14: 3 | F14: 3 | G14: 100.0% | N14: 3 | O14: 3 | P14: 100.0% | T14: 4 | U14: 4 | V14: =U14/T14 -> 100.0% | W14: 45 | X14: 43 | Y14: 95.6%
A15: 登高架设复训
A16: 制冷与空调运行操作复训
A17: 制冷与空调安装修理复训 | B17: 3 | C17: 2 | D17: =C17/B17 -> 66.7% | W17: 3 | X17: 2 | Y17: 66.7%
A18: 矿山安检复训
A19: 电力电缆复训 | E19: 3 | F19: 3 | G19: 100.0% | W19: 3 | X19: 3 | Y19: 100.0%
A20: 电气试验复训 | B20: 1 | C20: 1 | D20: 100.0% | E20: 1 | F20: 1 | G20: 100.0% | W20: 2 | X20: 2 | Y20: 100.0%
A21: 继电保护复训 | B21: 2 | C21: 2 | D21: 100.0% | W21: 2 | X21: 2 | Y21: 100.0%
A22: 危化操作工复训
A23: 特种作业复训合计 | B23: =SUM(B10:B22) -> 528 | C23: 506 | D23: 95.8% | E23: 127 | F23: 121 | G23: 95.3% | N23: =SUM(N10:N22) -> 133 | O23: 130 | P23: =O23/N23 -> 97.7% | T23: =SUM(T10:T22) -> 10 | U23: =SUM(U10:U22) -> 10 | V23: =U23/T23 -> 100.0% | W23: 798 | X23: 767 | Y23: 96.1%
A24: 特种作业人员合计 | B24: =B9+B23 -> 1099 | C24: =C9+C23 -> 930 | D24: 84.6% | E24: =E9+E23 -> 285 | F24: =F9+F23 -> 269 | G24: 94.4% | N24: =N9+N23 -> 267 | O24: =O9+O23 -> 240 | P24: 89.9% | T24: =T9+T23 -> 221 | U24: =U9+U23 -> 172 | V24: =U24/T24 -> 77.8% | W24: 1872 | X24: 1611 | Y24: 86.1%
A25: 烟花爆竹经营负责人初训 | B25: 68 | C25: 56 | D25: 82.4% | E25: 1 | F25: 1 | G25: 100.0% | W25: 69 | X25: 57 | Y25: 82.6%
A26: 危化生产负责人初训 | B26: 1 | C26: 1 | D26: 100.0% | W26: 1 | X26: 1 | Y26: 100.0%
A27: 危化经营负责人初训 | B27: 26 | C27: 25 | D27: 96.2% | W27: 26 | X27: 25 | Y27: 96.2%
A28: 非煤矿山负责人初训 | B28: 1 | C28: 1 | D28: 100.0%
A29: 金属冶炼负责人初训 | B29: 2 | C29: 2 | D29: 100.0% | W29: 2 | X29: 2 | Y29: 100.0%
A30: 高危行业负责人初训合计 | B30: =SUM(B25:B29) -> 98 | C30: 85 | D30: 86.7% | E30: 1 | F30: 1 | G30: =F30/E30 -> 100.0% | W30: 99 | X30: 86 | Y30: 86.9%
A31: 烟花爆竹经营负责人复训 | B31: 9 | C31: 8 | D31: 88.9% | W31: =B31+E31+H31+K31+N31+Q31+T31 -> 9 | X31: =C31+F31+I31+L31+O31+R31+U31 -> 8 | Y31: 88.9%
A32: 危化生产负责人复训 | B32: 6 | C32: 6 | D32: 100.0% | W32: 6 | X32: 6 | Y32: 100.0%
A33: 危化经营负责人复训 | B33: 93 | C33: 88 | D33: 94.6% | W33: 93 | X33: 88 | Y33: 94.6%
A34: 非煤矿山负责人复训
A35: 金属冶炼负责人复训 | B35: 3 | C35: 3 | D35: 100.0% | W35: 3 | X35: 3 | Y35: 100.0%
A36: 高危行业负责人复训合计 | B36: =SUM(B31:B35) -> 111 | C36: 105 | D36: 94.6% | W36: 111 | X36: 105 | Y36: 94.6%
A37: 高危行业主要负责人合计 | B37: =B30+B36 -> 209 | C37: 190 | D37: 90.9% | E37: 1 | F37: 1 | G37: =F37/E37 -> 100.0% | W37: 210 | X37: 191 | Y37: 91.0%
A38: 烟花爆竹经营安管初训 | B38: 58 | C38: 45 | D38: 77.6% | E38: 3 | F38: 2 | G38: =F38/E38 -> 66.7% | W38: 61 | X38: 47 | Y38: 77.0%
A39: 危化生产安管初训 | B39: 11 | C39: 11 | D39: 100.0% | W39: 11 | X39: 11 | Y39: 100.0%
A40: 危化经营安管初训 | B40: 95 | C40: 68 | D40: 71.6% | E40: 3 | F40: 3 | G40: =F40/E40 -> 100.0% | W40: 98 | X40: 71 | Y40: 72.4%
A41: 非煤矿山安管初训 | B41: 2 | C41: 2 | D41: 100.0% | E41: 3 | F41: 3 | G41: =F41/E41 -> 100.0% | W41: =B41+E41+H41+K41+N41+Q41+T41 -> 5 | X41: =C41+F41+I41+L41+O41+R41+U41 -> 5 | Y41: 100.0%
A42: 金属冶炼安管初训 | B42: 1 | C42: 1 | D42: 100.0% | W42: 1 | X42: 1 | Y42: 100.0%
A43: 高危行业安管初训合计 | B43: =SUM(B38:B42) -> 167 | C43: 127 | D43: 76.0% | E43: 9 | F43: 8 | G43: 88.9% | W43: 176 | X43: 135 | Y43: 76.7%
A44: 烟花爆竹经营安管复训 | B44: 7 | C44: 7 | D44: 100.0% | W44: =B44+E44+H44+K44+N44+Q44+T44 -> 7 | X44: =C44+F44+I44+L44+O44+R44+U44 -> 7 | Y44: 100.0%
A45: 危化生产安管复训 | B45: 15 | C45: 14 | D45: 93.3% | W45: 15 | X45: 14 | Y45: 93.3%
A46: 危化经营安管复训 | B46: 164 | C46: 153 | D46: 93.3% | E46: 2 | F46: 2 | G46: 100.0% | W46: 166 | X46: 155 | Y46: 93.4%
A47: 非煤矿山安管复训
A48: 金属冶炼安管复训 | B48: 7 | C48: 7 | D48: 100.0% | W48: 7 | X48: 7 | Y48: 100.0%
A49: 高危行业安管复训合计 | B49: =SUM(B44:B48) -> 193 | C49: 181 | D49: 93.8% | E49: 2 | F49: 2 | G49: =F49/E49 -> 100.0% | W49: 195 | X49: 183 | Y49: 93.8%
A50: 高危行业安管人员合计 | B50: =B43+B49 -> 360 | C50: 308 | D50: 85.6% | E50: 11 | F50: 10 | G50: 90.9% | W50: 371 | X50: 318 | Y50: 85.7%
A51: 高危行业负责人安管合计 | B51: =B37+B50 -> 569 | C51: 498 | D51: 87.5% | E51: 12 | F51: 11 | G51: 91.7% | W51: 581 | X51: 509 | Y51: 87.6%
A52: 全工种合计 | B52: =B24+B51 -> 1668 | C52: =C24+C51 -> 1428 | D52: 85.6% | E52: =E24+E51 -> 297 | F52: =F24+F51 -> 280 | G52: 94.3% | N52: =N24+N51 -> 267 | O52: =O24+O51 -> 240 | P52: =O52/N52 -> 89.9% | T52: =T24+T51 -> 221 | U52: =U24+U51 -> 172 | V52: =U52/T52 -> 77.8% | W52: 2453 | X52: 2120 | Y52: 86.4%
A53: 备注： 1.考试点名称以全国安全生产培训考试信息管理系统记录为准，按系统顺序排序； 2.实考人数=报考总人数-正考补考均缺考人数-考试违规被取消成绩人数； 3.仅统计已完成考试者，还有补考机会者不统计。

Sheet 4月
A1: 2023年4月各考试点考生通过率统计表
A2: 培训机构 工种 | B2: 江门市安全生产知识考试点（江门市安信职业安全培训有限公司） | E2: 开平四维考试点（广东四维培训有限公司） | H2: 开平市安全生产管理协会 | K2: 江门市技师学院 | N2: 江门市新会机电职业技术学校 | Q2: 江门市新会技师学院 | T2: 鹤山市新供销协力教育咨询有限公司 | W2: 全市合计
B3: 实考人数 | C3: 合格人数 | D3: 通过率 | E3: 实考人数 | F3: 合格人数 | G3: 通过率 | H3: 实考人数 | I3: 合格人数 | J3: 通过率 | K3: 实考人数 | L3: 合格人数 | M3: 通过率 | N3: 实考人数 | O3: 合格人数 | P3: 通过率 | Q3: 实考人数 | R3: 合格人数 | S3: 通过率 | T3: 实考人数 | U3: 合格人数 | V3: 通过率 | W3: 实考人数 | X3: 合格人数 | Y3: 通过率
A4: 低压电工初训 | B4: 230 | C4: 136 | D4: =C4/B4 -> 59.1% | E4: 90 | F4: 76 | G4: =F4/E4 -> 84.4% | N4: 134 | O4: 119 | P4: =O4/N4 -> 88.8% | T4: 132 | U4: 95 | V4: =U4/T4 -> 72.0% | W4: =B4+E4+H4+K4+N4+Q4+T4 -> 586 | X4: 426 | Y4: =X4/W4 -> 72.7%
A5: 高压电工初训 | E5: 68 | F5: 60 | G5: =F5/E5 -> 88.2% | W5: 68 | X5: 60 | Y5: 88.2%
A6: 电力电缆初训
A7: 熔化焊接与热切割初训 | B7: 201 | C7: 176 | D7: =C7/B7 -> 87.6% | K7: 50 | L7: 50 | M7: =L7/K7 -> 100.0% | T7: 85 | U7: 69 | V7: =U7/T7 -> 81.2% | W7: 336 | X7: 295 | Y7: 87.8%
A8: 高处安装维护拆除初训 | B8: 141 | C8: 130 | D8: 92.2% | T8: 92 | U8: 83 | V8: =U8/T8 -> 90.2% | W8: 233 | X8: 213 | Y8: 91.4%
A9: 特种作业初训合计 | B9: =SUM(B4:B8) -> 572 | C9: =SUM(C4:C8) -> 442 | D9: 77.3% | E9: =SUM(E4:E8) -> 158 | F9: =SUM(F4:F8) -> 136 | G9: 86.1% | K9: =SUM(K4:K8) -> 50 | L9: =SUM(L4:L8) -> 50 | M9: =L9/K9 -> 100.0% | N9: =SUM(N4:N8) -> 134 | O9: =SUM(O4:O8) -> 119 | P9: =O9/N9 -> 88.8% | T9: =SUM(T4:T8) -> 309 | U9: =SUM(U4:U8) -> 247 | V9: =U9/T9 -> 79.9% | W9: 1223 | X9: 994 | Y9: 81.3%
A10: 低压电工复训 | B10: 251 | C10: 247 | D10: 98.4% | E10: 67 | F10: 67 | G10: 100.0% | K10: 1 | L10: 1 | M10: =L10/K10 -> 100.0% | N10: 273 | O10: 271 | P10: =O10/N10 -> 99.3% | T10: 16 | U10: 16 | V10: =U10/T10 -> 100.0% | W10: 608 | X10: 602 | Y10: 99.0%
A11: 高压电工复训 | B11: 49 | C11: 49 | D11: 100.0% | E11: 12 | F11: 9 | G11: 75.0% | N11: 40 | O11: 36 | P11: 90.0% | W11: 101 | X11: 94 | Y11: 93.1%
A12: 熔化焊接与热切割复训 | B12: 55 | C12: 52 | D12: 94.5% | E12: 5 | F12: 5 | G12: 100.0% | N12: 43 | O12: 39 | P12: 90.7% | T12: 3 | U12: 2 | V12: =U12/T12 -> 66.7% | W12: 106 | X12: 98 | Y12: 92.5%
A13: 钎焊复训
A14: 高处安装维护拆除复训 | B14: 7 | C14: 7 | D14: 100.0% | E14: 16 | F14: 16 | G14: 100.0% | N14: 6 | O14: 6 | P14: 100.0% | T14: 2 | U14: 2 | V14: =U14/T14 -> 100.0% | W14: 31 | X14: 31 | Y14: 100.0%
A15: 登高架设复训 | B15: 3 | C15: 3 | D15: 100.0% | W15: =B15+E15+H15+K15+N15+Q15+T15 -> 3 | X15: =C15+F15+I15+L15+O15+R15+U15 -> 3 | Y15: 100.0%
A16: 制冷与空调运行操作复训
A17: 制冷与空调安装修理复训
A18: 矿山安检复训
A19: 电力电缆复训 | B19: 1 | C19: 0 | D19: =C19/B19 -> 0.0% | W19: 1 | X19: 0 | Y19: 0.0%
A20: 电气试验复训 | B20: 1 | C20: 1 | D20: 100.0% | E20: 1 | F20: 1 | G20: 100.0% | W20: 2 | X20: 2 | Y20: 100.0%
A21: 继电保护复训 | N21: 1 | O21: 1 | P21: =O21/N21 -> 100.0% | W21: 1 | X21: 1 | Y21: 100.0%
A22: 危化操作工复训 | B22: 1 | C22: 1 | D22: 100.0% | W22: =B22+E22+H22+K22+N22+Q22+T22 -> 1 | X22: =C22+F22+I22+L22+O22+R22+U22 -> 1 | Y22: 100.0%
A23: 特种作业复训合计 | B23: =SUM(B10:B22) -> 368 | C23: 360 | D23: 97.8% | E23: 101 | F23: 98 | G23: 97.0% | K23: =SUM(K10:K22) -> 1 | L23: 1 | M23: =L23/K23 -> 100.0% | N23: =SUM(N10:N22) -> 363 | O23: 353 | P23: =O23/N23 -> 97.2% | T23: =SUM(T10:T22) -> 21 | U23: =SUM(U10:U22) -> 20 | V23: =U23/T23 -> 95.2% | W23: 854 | X23: 832 | Y23: 97.4%
A24: 特种作业人员合计 | B24: =B9+B23 -> 940 | C24: =C9+C23 -> 802 | D24: 85.3% | E24: =E9+E23 -> 259 | F24: =F9+F23 -> 234 | G24: 90.3% | K24: =K9+K23 -> 51 | L24: =L9+L23 -> 51 | M24: 100.0% | N24: =N9+N23 -> 497 | O24: =O9+O23 -> 472 | P24: 95.0% | T24: =T9+T23 -> 330 | U24: =U9+U23 -> 267 | V24: =U24/T24 -> 80.9% | W24: 2077 | X24: 1826 | Y24: 87.9%
A25: 烟花爆竹经营负责人初训 | B25: 17 | C25: 12 | D25: 70.6% | E25: 4 | F25: 3 | G25: 75.0% | W25: 21 | X25: 15 | Y25: 71.4%
A26: 危化生产负责人初训
A27: 危化经营负责人初训 | B27: 13 | C27: 13 | D27: 100.0% | W27: 13 | X27: 13 | Y27: 100.0%
A28: 非煤矿山负责人初训
A29: 金属冶炼负责人初训
A30: 高危行业负责人初训合计 | B30: =SUM(B25:B29) -> 30 | C30: 25 | D30: 83.3% | E30: 4 | F30: 3 | G30: =F30/E30 -> 75.0% | W30: 34 | X30: 28 | Y30: 82.4%
A31: 烟花爆竹经营负责人复训 | B31: 3 | C31: 3 | D31: 100.0% | W31: =B31+E31+H31+K31+N31+Q31+T31 -> 3 | X31: =C31+F31+I31+L31+O31+R31+U31 -> 3 | Y31: 100.0%
A32: 危化生产负责人复训 | B32: 37 | C32: 36 | D32: 97.3% | W32: 37 | X32: 36 | Y32: 97.3%
A33: 危化经营负责人复训 | B33: 50 | C33: 50 | D33: 100.0% | E33: 2 | F33: 2 | G33: =F33/E33 -> 100.0% | W33: 52 | X33: 52 | Y33: 100.0%
A34: 非煤矿山负责人复训
A35: 金属冶炼负责人复训 | B35: 2 | C35: 2 | D35: 100.0% | W35: 2 | X35: 2 | Y35: 100.0%
A36: 高危行业负责人复训合计 | B36: =SUM(B31:B35) -> 92 | C36: 91 | D36: 98.9% | E36: =SUM(E31:E35) -> 2 | F36: =SUM(F31:F35) -> 2 | G36: =F36/E36 -> 100.0% | W36: 94 | X36: 93 | Y36: 98.9%
A37: 高危行业主要负责人合计 | B37: =B30+B36 -> 122 | C37: 116 | D37: 95.1% | E37: 6 | F37: 5 | G37: =F37/E37 -> 83.3% | W37: 128 | X37: 121 | Y37: 94.5%
A38: 烟花爆竹经营安管初训 | B38: 9 | C38: 8 | D38: 88.9% | E38: 4 | F38: 2 | G38: =F38/E38 -> 50.0% | W38: 13 | X38: 10 | Y38: 76.9%
A39: 危化生产安管初训 | B39: 11 | C39: 10 | D39: 90.9% | W39: 11 | X39: 10 | Y39: 90.9%
A40: 危化经营安管初训 | B40: 54 | C40: 50 | D40: 92.6% | W40: 54 | X40: 50 | Y40: 92.6%
A41: 非煤矿山安管初训 | B41: 3 | C41: 3 | D41: 100.0% | E41: 1 | F41: 1 | G41: =F41/E41 -> 100.0% | W41: =B41+E41+H41+K41+N41+Q41+T41 -> 4 | X41: =C41+F41+I41+L41+O41+R41+U41 -> 4 | Y41: 100.0%
A42: 金属冶炼安管初训 | B42: 2 | C42: 1 | D42: 50.0% | W42: 2 | X42: 1 | Y42: 50.0%
A43: 高危行业安管初训合计 | B43: =SUM(B38:B42) -> 79 | C43: 72 | D43: 91.1% | E43: 5 | F43: 3 | G43: 60.0% | W43: 84 | X43: 75 | Y43: 89.3%
A44: 烟花爆竹经营安管复训 | B44: 3 | C44: 3 | D44: 100.0% | W44: =B44+E44+H44+K44+N44+Q44+T44 -> 3 | X44: =C44+F44+I44+L44+O44+R44+U44 -> 3 | Y44: 100.0%
A45: 危化生产安管复训 | B45: 44 | C45: 43 | D45: 97.7% | W45: 44 | X45: 43 | Y45: 97.7%
A46: 危化经营安管复训 | B46: 49 | C46: 47 | D46: 95.9% | E46: 3 | F46: 3 | G46: 100.0% | W46: 52 | X46: 50 | Y46: 96.2%
A47: 非煤矿山安管复训
A48: 金属冶炼安管复训 | B48: 2 | C48: 2 | D48: 100.0% | W48: 2 | X48: 2 | Y48: 100.0%
A49: 高危行业安管复训合计 | B49: =SUM(B44:B48) -> 98 | C49: 95 | D49: 96.9% | E49: 3 | F49: 3 | G49: =F49/E49 -> 100.0% | W49: 101 | X49: 98 | Y49: 97.0%
A50: 高危行业安管人员合计 | B50: =B43+B49 -> 177 | C50: 167 | D50: 94.4% | E50: 8 | F50: 6 | G50: 75.0% | W50: 185 | X50: 173 | Y50: 93.5%
A51: 高危行业负责人安管合计 | B51: =B37+B50 -> 299 | C51: 283 | D51: 94.6% | E51: 14 | F51: 11 | G51: 78.6% | W51: 313 | X51: 294 | Y51: 93.9%
A52: 全工种合计 | B52: =B24+B51 -> 1239 | C52: =C24+C51 -> 1085 | D52: 87.6% | E52: =E24+E51 -> 273 | F52: =F24+F51 -> 245 | G52: 89.7% | K52: =K24+K51 -> 51 | L52: =L24+L51 -> 51 | M52: =L52/K52 -> 100.0% | N52: =N24+N51 -> 497 | O52: =O24+O51 -> 472 | P52: =O52/N52 -> 95.0% | T52: =T24+T51 -> 330 | U52: =U24+U51 -> 267 | V52: =U52/T52 -> 80.9% | W52: 2390 | X52: 2120 | Y52: 88.7%
A53: 备注： 1.考试点名称以全国安全生产培训考试信息管理系统记录为准，按系统顺序排序； 2.实考人数=报考总人数-正考补考均缺考人数-考试违规被取消成绩人数； 3.仅统计已完成考试者，还有补考机会者不统计。

Sheet 5月
A1: 2023年5月各考试点考生通过率统计表
A2: 培训机构 工种 | B2: 江门市安全生产知识考试点（江门市安信职业安全培训有限公司） | E2: 开平四维考试点（广东四维培训有限公司） | H2: 开平市安全生产管理协会 | K2: 江门市技师学院 | N2: 江门市新会机电职业技术学校 | Q2: 江门市新会技师学院 | T2: 鹤山市新供销协力教育咨询有限公司 | W2: 全市合计
B3: 实考人数 | C3: 合格人数 | D3: 通过率 | E3: 实考人数 | F3: 合格人数 | G3: 通过率 | H3: 实考人数 | I3: 合格人数 | J3: 通过率 | K3: 实考人数 | L3: 合格人数 | M3: 通过率 | N3: 实考人数 | O3: 合格人数 | P3: 通过率 | Q3: 实考人数 | R3: 合格人数 | S3: 通过率 | T3: 实考人数 | U3: 合格人数 | V3: 通过率 | W3: 实考人数 | X3: 合格人数 | Y3: 通过率
A4: 低压电工初训 | B4: 295 | C4: 211 | D4: =C4/B4 -> 71.5% | E4: 49 | F4: 36 | G4: =F4/E4 -> 73.5% | N4: 99 | O4: 69 | P4: =O4/N4 -> 69.7% | T4: 39 | U4: 24 | V4: =U4/T4 -> 61.5% | W4: =B4+E4+H4+K4+N4+Q4+T4 -> 482 | X4: 340 | Y4: =X4/W4 -> 70.5%
A5: 高压电工初训 | E5: 52 | F5: 49 | G5: =F5/E5 -> 94.2% | W5: 52 | X5: 49 | Y5: 94.2%
A6: 电力电缆初训
A7: 熔化焊接与热切割初训 | B7: 152 | C7: 127 | D7: =C7/B7 -> 83.6% | T7: 131 | U7: 104 | V7: =U7/T7 -> 79.4% | W7: 283 | X7: 231 | Y7: 81.6%
A8: 高处安装维护拆除初训 | B8: 184 | C8: 164 | D8: 89.1% | T8: 73 | U8: 62 | V8: =U8/T8 -> 84.9% | W8: 257 | X8: 226 | Y8: 87.9%
A9: 特种作业初训合计 | B9: =SUM(B4:B8) -> 631 | C9: =SUM(C4:C8) -> 502 | D9: 79.6% | E9: =SUM(E4:E8) -> 101 | F9: =SUM(F4:F8) -> 85 | G9: 84.2% | N9: =SUM(N4:N8) -> 99 | O9: =SUM(O4:O8) -> 69 | P9: =O9/N9 -> 69.7% | T9: =SUM(T4:T8) -> 243 | U9: =SUM(U4:U8) -> 190 | V9: =U9/T9 -> 78.2% | W9: 1074 | X9: 846 | Y9: 78.8%
A10: 低压电工复训 | B10: 283 | C10: 278 | D10: 98.2% | E10: 33 | F10: 33 | G10: 100.0% | N10: 178 | O10: 168 | P10: =O10/N10 -> 94.4% | T10: 13 | U10: 13 | V10: =U10/T10 -> 100.0% | W10: 507 | X10: 492 | Y10: 97.0%
A11: 高压电工复训 | B11: 27 | C11: 24 | D11: 88.9% | E11: 16 | F11: 16 | G11: 100.0% | N11: 30 | O11: 26 | P11: 86.7% | W11: 73 | X11: 66 | Y11: 90.4%
A12: 熔化焊接与热切割复训 | B12: 42 | C12: 41 | D12: 97.6% | E12: 5 | F12: 5 | G12: 100.0% | N12: 23 | O12: 23 | P12: 100.0% | T12: 13 | U12: 10 | V12: =U12/T12 -> 76.9% | W12: 83 | X12: 79 | Y12: 95.2%
A13: 钎焊复训
A14: 高处安装维护拆除复训 | B14: 13 | C14: 13 | D14: 100.0% | E14: 10 | F14: 10 | G14: 100.0% | N14: 23 | O14: 20 | P14: 87.0% | T14: 1 | U14: 1 | V14: =U14/T14 -> 100.0% | W14: 47 | X14: 44 | Y14: 93.6%
A15: 登高架设复训 | B15: 1 | C15: 1 | D15: 100.0% | T15: 1 | U15: 1 | V15: =U15/T15 -> 100.0% | W15: =B15+E15+H15+K15+N15+Q15+T15 -> 2 | X15: =C15+F15+I15+L15+O15+R15+U15 -> 2 | Y15: 100.0%
A16: 制冷与空调运行操作复训
A17: 制冷与空调安装修理复训
A18: 矿山安检复训
A19: 电力电缆复训 | B19: 1 | C19: 1 | D19: =C19/B19 -> 100.0% | W19: 1 | X19: 1 | Y19: 100.0%
A20: 电气试验复训 | E20: 1 | F20: 1 | G20: 100.0% | W20: 1 | X20: 1 | Y20: 100.0%
A21: 继电保护复训 | E21: 1 | F21: 1 | G21: 100.0% | W21: 1 | X21: 1 | Y21: 100.0%
A22: 危化操作工复训
A23: 特种作业复训合计 | B23: =SUM(B10:B22) -> 367 | C23: 358 | D23: 97.5% | E23: 66 | F23: 66 | G23: 100.0% | N23: =SUM(N10:N22) -> 254 | O23: 237 | P23: =O23/N23 -> 93.3% | T23: =SUM(T10:T22) -> 28 | U23: =SUM(U10:U22) -> 25 | V23: =U23/T23 -> 89.3% | W23: 715 | X23: 686 | Y23: 95.9%
A24: 特种作业人员合计 | B24: =B9+B23 -> 998 | C24: =C9+C23 -> 860 | D24: 86.2% | E24: =E9+E23 -> 167 | F24: =F9+F23 -> 151 | G24: 90.4% | N24: =N9+N23 -> 353 | O24: =O9+O23 -> 306 | P24: 86.7% | T24: =T9+T23 -> 271 | U24: =U9+U23 -> 215 | V24: =U24/T24 -> 79.3% | W24: 1789 | X24: 1532 | Y24: 85.6%
A25: 烟花爆竹经营负责人初训 | B25: 34 | C25: 30 | D25: 88.2% | E25: 5 | F25: 4 | G25: 80.0% | N25: 3 | O25: 3 | P25: =O25/N25 -> 100.0% | W25: 42 | X25: 37 | Y25: 88.1%
A26: 危化生产负责人初训 | B26: 5 | C26: 5 | D26: 100.0% | W26: =B26+E26+H26+K26+N26+Q26+T26 -> 5 | X26: =C26+F26+I26+L26+O26+R26+U26 -> 5 | Y26: 100.0%
A27: 危化经营负责人初训 | B27: 16 | C27: 16 | D27: 100.0% | E27: 2 | F27: 2 | G27: =F27/E27 -> 100.0% | N27: 1 | O27: 1 | P27: 100.0% | W27: 19 | X27: 19 | Y27: 100.0%
A28: 非煤矿山负责人初训 | B28: 1 | C28: 1 | D28: 100.0% | W28: 1 | X28: 1 | Y28: 100.0%
A29: 金属冶炼负责人初训 | B29: 1 | C29: 1 | D29: 100.0% | W29: 1 | X29: 1 | Y29: 100.0%
A30: 高危行业负责人初训合计 | B30: =SUM(B25:B29) -> 57 | C30: 53 | D30: 93.0% | E30: 7 | F30: 6 | G30: =F30/E30 -> 85.7% | N30: =SUM(N25:N29) -> 4 | O30: 4 | P30: =O30/N30 -> 100.0% | W30: 68 | X30: 63 | Y30: 92.6%
A31: 烟花爆竹经营负责人复训 | B31: 14 | C31: 12 | D31: 85.7% | W31: =B31+E31+H31+K31+N31+Q31+T31 -> 14 | X31: =C31+F31+I31+L31+O31+R31+U31 -> 12 | Y31: 85.7%
A32: 危化生产负责人复训 | B32: 12 | C32: 12 | D32: 100.0% | N32: 2 | O32: 2 | P32: =O32/N32 -> 100.0% | W32: 14 | X32: 14 | Y32: 100.0%
A33: 危化经营负责人复训 | B33: 52 | C33: 50 | D33: 96.2% | N33: 13 | O33: 13 | P33: =O33/N33 -> 100.0% | W33: 65 | X33: 63 | Y33: 96.9%
A34: 非煤矿山负责人复训 | B34: 10 | C34: 10 | D34: 100.0% | W34: =B34+E34+H34+K34+N34+Q34+T34 -> 10 | X34: =C34+F34+I34+L34+O34+R34+U34 -> 10 | Y34: 100.0%
A35: 金属冶炼负责人复训
A36: 高危行业负责人复训合计 | B36: =SUM(B31:B35) -> 88 | C36: 84 | D36: 95.5% | N36: =SUM(N31:N35) -> 15 | O36: =SUM(O31:O35) -> 15 | P36: =O36/N36 -> 100.0% | W36: 103 | X36: 99 | Y36: 96.1%
A37: 高危行业主要负责人合计 | B37: =B30+B36 -> 145 | C37: 137 | D37: 94.5% | E37: 7 | F37: 6 | G37: =F37/E37 -> 85.7% | N37: =N30+N36 -> 19 | O37: 19 | P37: =O37/N37 -> 100.0% | W37: 171 | X37: 162 | Y37: 94.7%
A38: 烟花爆竹经营安管初训 | B38: 35 | C38: 29 | D38: 82.9% | E38: 3 | F38: 2 | G38: 66.7% | N38: 2 | O38: 1 | P38: =O38/N38 -> 50.0% | W38: 40 | X38: 32 | Y38: 80.0%
A39: 危化生产安管初训 | B39: 24 | C39: 23 | D39: 95.8% | W39: 24 | X39: 23 | Y39: 95.8%
A40: 危化经营安管初训 | B40: 70 | C40: 44 | D40: 62.9% | E40: 5 | F40: 5 | G40: 100.0% | N40: 4 | O40: 4 | P40: =O40/N40 -> 100.0% | W40: 79 | X40: 53 | Y40: 67.1%
A41: 非煤矿山安管初训 | B41: 2 | C41: 1 | D41: 50.0% | W41: =B41+E41+H41+K41+N41+Q41+T41 -> 2 | X41: =C41+F41+I41+L41+O41+R41+U41 -> 1 | Y41: 50.0%
A42: 金属冶炼安管初训
A43: 高危行业安管初训合计 | B43: =SUM(B38:B42) -> 131 | C43: 97 | D43: 74.0% | E43: 8 | F43: 7 | G43: =F43/E43 -> 87.5% | N43: =SUM(N38:N42) -> 6 | O43: 5 | P43: =O43/N43 -> 83.3% | W43: 145 | X43: 109 | Y43: 75.2%
A44: 烟花爆竹经营安管复训 | B44: 1 | C44: 1 | D44: 100.0% | W44: =B44+E44+H44+K44+N44+Q44+T44 -> 1 | X44: =C44+F44+I44+L44+O44+R44+U44 -> 1 | Y44: 100.0%
A45: 危化生产安管复训 | B45: 34 | C45: 34 | D45: 100.0% | N45: 1 | O45: 1 | P45: =O45/N45 -> 100.0% | W45: 35 | X45: 35 | Y45: 100.0%
A46: 危化经营安管复训 | B46: 73 | C46: 66 | D46: 90.4% | N46: 12 | O46: 12 | P46: 100.0% | W46: 85 | X46: 78 | Y46: 91.8%
A47: 非煤矿山安管复训 | B47: 20 | C47: 19 | D47: 95.0% | W47: =B47+E47+H47+K47+N47+Q47+T47 -> 20 | X47: =C47+F47+I47+L47+O47+R47+U47 -> 19 | Y47: 95.0%
A48: 金属冶炼安管复训
A49: 高危行业安管复训合计 | B49: =SUM(B44:B48) -> 128 | C49: 120 | D49: 93.8% | N49: =SUM(N44:N48) -> 13 | O49: 13 | P49: =O49/N49 -> 100.0% | W49: 141 | X49: 133 | Y49: 94.3%
A50: 高危行业安管人员合计 | B50: =B43+B49 -> 259 | C50: 217 | D50: 83.8% | E50: 8 | F50: 7 | G50: =F50/E50 -> 87.5% | N50: =N43+N49 -> 19 | O50: 18 | P50: 94.7% | W50: 286 | X50: 242 | Y50: 84.6%
A51: 高危行业负责人安管合计 | B51: =B37+B50 -> 404 | C51: 354 | D51: 87.6% | E51: 15 | F51: 13 | G51: 86.7% | N51: =N37+N50 -> 38 | O51: 37 | P51: 97.4% | W51: 457 | X51: 404 | Y51: 88.4%
A52: 全工种合计 | B52: =B24+B51 -> 1402 | C52: =C24+C51 -> 1214 | D52: 86.6% | E52: =E24+E51 -> 182 | F52: =F24+F51 -> 164 | G52: 90.1% | N52: =N24+N51 -> 391 | O52: =O24+O51 -> 343 | P52: 87.7% | T52: =T24+T51 -> 271 | U52: =U24+U51 -> 215 | V52: =U52/T52 -> 79.3% | W52: 2246 | X52: 1936 | Y52: 86.2%
A53: 备注： 1.考试点名称以全国安全生产培训考试信息管理系统记录为准，按系统顺序排序； 2.实考人数=报考总人数-正考补考均缺考人数-考试违规被取消成绩人数； 3.仅统计已完成考试者，还有补考机会者不统计。

Sheet 6月
A1: 2023年6月各考试点考生通过率统计表
A2: 培训机构 工种 | B2: 江门市安全生产知识考试点（江门市安信职业安全培训有限公司） | E2: 开平四维考试点（广东四维培训有限公司） | H2: 开平市安全生产管理协会 | K2: 江门市技师学院 | N2: 江门市新会机电职业技术学校 | Q2: 江门市新会技师学院 | T2: 鹤山市新供销协力教育咨询有限公司 | W2: 全市合计
B3: 实考人数 | C3: 合格人数 | D3: 通过率 | E3: 实考人数 | F3: 合格人数 | G3: 通过率 | H3: 实考人数 | I3: 合格人数 | J3: 通过率 | K3: 实考人数 | L3: 合格人数 | M3: 通过率 | N3: 实考人数 | O3: 合格人数 | P3: 通过率 | Q3: 实考人数 | R3: 合格人数 | S3: 通过率 | T3: 实考人数 | U3: 合格人数 | V3: 通过率 | W3: 实考人数 | X3: 合格人数 | Y3: 通过率
A4: 低压电工初训 | B4: 443 | C4: 264 | D4: =C4/B4 -> 59.6% | E4: 62 | F4: 33 | G4: =F4/E4 -> 53.2% | N4: 130 | O4: 99 | P4: =O4/N4 -> 76.2% | T4: 110 | U4: 82 | V4: =U4/T4 -> 74.5% | W4: =B4+E4+H4+K4+N4+Q4+T4 -> 745 | X4: 478 | Y4: =X4/W4 -> 64.2%
A5: 高压电工初训 | E5: 92 | F5: 69 | G5: =F5/E5 -> 75.0% | W5: 92 | X5: 69 | Y5: 75.0%
A6: 电力电缆初训
A7: 熔化焊接与热切割初训 | B7: 277 | C7: 216 | D7: =C7/B7 -> 78.0% | T7: 121 | U7: 103 | V7: =U7/T7 -> 85.1% | W7: 398 | X7: 319 | Y7: 80.2%
A8: 高处安装维护拆除初训 | B8: 52 | C8: 51 | D8: 98.1% | W8: 52 | X8: 51 | Y8: 98.1%
A9: 特种作业初训合计 | B9: =SUM(B4:B8) -> 772 | C9: =SUM(C4:C8) -> 531 | D9: 68.8% | E9: =SUM(E4:E8) -> 154 | F9: =SUM(F4:F8) -> 102 | G9: 66.2% | N9: =SUM(N4:N8) -> 130 | O9: =SUM(O4:O8) -> 99 | P9: =O9/N9 -> 76.2% | T9: =SUM(T4:T8) -> 231 | U9: =SUM(U4:U8) -> 185 | V9: =U9/T9 -> 80.1% | W9: 1287 | X9: 917 | Y9: 71.3%
A10: 低压电工复训 | B10: 276 | C10: 275 | D10: 99.6% | E10: 69 | F10: 67 | G10: 97.1% | N10: 138 | O10: 135 | P10: =O10/N10 -> 97.8% | T10: 25 | U10: 25 | V10: =U10/T10 -> 100.0% | W10: 508 | X10: 502 | Y10: 98.8%
A11: 高压电工复训 | B11: 55 | C11: 54 | D11: 98.2% | E11: 29 | F11: 23 | G11: 79.3% | N11: 19 | O11: 18 | P11: 94.7% | W11: 103 | X11: 95 | Y11: 92.2%
A12: 熔化焊接与热切割复训 | B12: 85 | C12: 84 | D12: 98.8% | E12: 14 | F12: 13 | G12: 92.9% | N12: 33 | O12: 33 | P12: 100.0% | T12: 23 | U12: 20 | V12: =U12/T12 -> 87.0% | W12: 155 | X12: 150 | Y12: 96.8%
A13: 钎焊复训
A14: 高处安装维护拆除复训 | B14: 31 | C14: 31 | D14: 100.0% | E14: 16 | F14: 15 | G14: 93.8% | N14: 36 | O14: 34 | P14: 94.4% | T14: 26 | U14: 25 | V14: =U14/T14 -> 96.2% | W14: 109 | X14: 105 | Y14: 96.3%
A15: 登高架设复训 | B15: 10 | C15: 10 | D15: 100.0% | T15: 7 | U15: 7 | V15: =U15/T15 -> 100.0% | W15: =B15+E15+H15+K15+N15+Q15+T15 -> 17 | X15: =C15+F15+I15+L15+O15+R15+U15 -> 17 | Y15: 100.0%
A16: 制冷与空调运行操作复训
A17: 制冷与空调安装修理复训
A18: 矿山安检复训
A19: 电力电缆复训 | B19: 1 | C19: 1 | D19: =C19/B19 -> 100.0% | E19: 11 | F19: 7 | G19: 63.6% | N19: 1 | O19: 0 | P19: =O19/N19 -> 0.0% | W19: 13 | X19: 8 | Y19: 61.5%
A20: 电气试验复训 | E20: 2 | F20: 1 | G20: 50.0% | N20: 2 | O20: 1 | P20: 50.0% | W20: 4 | X20: 2 | Y20: 50.0%
A21: 继电保护复训 | E21: 3 | F21: 1 | G21: 33.3% | W21: 3 | X21: 1 | Y21: 33.3%
A22: 危化操作工复训
A23: 特种作业复训合计 | B23: =SUM(B10:B22) -> 458 | C23: 455 | D23: 99.3% | E23: 144 | F23: 127 | G23: 88.2% | N23: =SUM(N10:N22) -> 229 | O23: 221 | P23: =O23/N23 -> 96.5% | T23: =SUM(T10:T22) -> 81 | U23: =SUM(U10:U22) -> 77 | V23: =U23/T23 -> 95.1% | W23: 912 | X23: 880 | Y23: 96.5%
A24: 特种作业人员合计 | B24: =B9+B23 -> 1230 | C24: =C9+C23 -> 986 | D24: 80.2% | E24: =E9+E23 -> 298 | F24: =F9+F23 -> 229 | G24: 76.8% | N24: =N9+N23 -> 359 | O24: =O9+O23 -> 320 | P24: 89.1% | T24: =T9+T23 -> 312 | U24: =U9+U23 -> 262 | V24: =U24/T24 -> 84.0% | W24: 2199 | X24: 1797 | Y24: 81.7%
A25: 烟花爆竹经营负责人初训 | B25: 19 | C25: 9 | D25: 47.4% | W25: 19 | X25: 9 | Y25: 47.4%
A26: 危化生产负责人初训 | B26: 3 | C26: 2 | D26: 66.7% | W26: 3 | X26: 2 | Y26: 66.7%
A27: 危化经营负责人初训 | B27: 15 | C27: 13 | D27: 86.7% | E27: 1 | F27: 1 | G27: =F27/E27 -> 100.0% | W27: 16 | X27: 14 | Y27: 87.5%
A28: 非煤矿山负责人初训 | B28: 2 | C28: 2 | D28: 100.0% | W28: 2 | X28: 2 | Y28: 100.0%
A29: 金属冶炼负责人初训
A30: 高危行业负责人初训合计 | B30: =SUM(B25:B29) -> 39 | C30: 26 | D30: 66.7% | E30: 1 | F30: 1 | G30: =F30/E30 -> 100.0% | W30: 40 | X30: 27 | Y30: 67.5%
A31: 烟花爆竹经营负责人复训 | B31: 5 | C31: 5 | D31: 100.0% | W31: =B31+E31+H31+K31+N31+Q31+T31 -> 5 | X31: =C31+F31+I31+L31+O31+R31+U31 -> 5 | Y31: 100.0%
A32: 危化生产负责人复训 | B32: 24 | C32: 23 | D32: 95.8% | E32: 2 | F32: 2 | G32: =F32/E32 -> 100.0% | W32: 26 | X32: 25 | Y32: 96.2%
A33: 危化经营负责人复训 | B33: 53 | C33: 52 | D33: 98.1% | E33: 6 | F33: 6 | G33: =F33/E33 -> 100.0% | N33: 7 | O33: 7 | P33: =O33/N33 -> 100.0% | W33: 66 | X33: 65 | Y33: 98.5%
A34: 非煤矿山负责人复训
A35: 金属冶炼负责人复训 | B35: 1 | C35: 1 | D35: 100.0% | W35: =B35+E35+H35+K35+N35+Q35+T35 -> 1 | X35: =C35+F35+I35+L35+O35+R35+U35 -> 1 | Y35: =X35/W35 -> 100.0%
A36: 高危行业负责人复训合计 | B36: =SUM(B31:B35) -> 83 | C36: 81 | D36: 97.6% | E36: 8 | F36: 8 | G36: =F36/E36 -> 100.0% | N36: =SUM(N31:N35) -> 7 | O36: =SUM(O31:O35) -> 7 | P36: =O36/N36 -> 100.0% | W36: 98 | X36: 96 | Y36: 98.0%
A37: 高危行业主要负责人合计 | B37: =B30+B36 -> 122 | C37: 107 | D37: 87.7% | E37: 9 | F37: 9 | G37: =F37/E37 -> 100.0% | N37: =N30+N36 -> 7 | O37: 7 | P37: =O37/N37 -> 100.0% | W37: 138 | X37: 123 | Y37: 89.1%
A38: 烟花爆竹经营安管初训 | B38: 18 | C38: 14 | D38: 77.8% | N38: 3 | O38: 3 | P38: =O38/N38 -> 100.0% | W38: 21 | X38: 17 | Y38: 81.0%
A39: 危化生产安管初训 | B39: 14 | C39: 12 | D39: 85.7% | W39: 14 | X39: 12 | Y39: 85.7%
A40: 危化经营安管初训 | B40: 31 | C40: 24 | D40: 77.4% | E40: 5 | F40: 5 | G40: 100.0% | N40: 2 | O40: 1 | P40: =O40/N40 -> 50.0% | W40: 38 | X40: 30 | Y40: 78.9%
A41: 非煤矿山安管初训 | B41: 5 | C41: 5 | D41: 100.0% | E41: 6 | F41: 6 | G41: 100.0% | W41: =B41+E41+H41+K41+N41+Q41+T41 -> 11 | X41: =C41+F41+I41+L41+O41+R41+U41 -> 11 | Y41: 100.0%
A42: 金属冶炼安管初训 | B42: 2 | C42: 2 | D42: 100.0% | E42: 2 | F42: 2 | G42: 100.0% | W42: =B42+E42+H42+K42+N42+Q42+T42 -> 4 | X42: =C42+F42+I42+L42+O42+R42+U42 -> 4 | Y42: =X42/W42 -> 100.0%
A43: 高危行业安管初训合计 | B43: =SUM(B38:B42) -> 70 | C43: 57 | D43: 81.4% | E43: 13 | F43: 13 | G43: =F43/E43 -> 100.0% | N43: =SUM(N38:N42) -> 5 | O43: 4 | P43: =O43/N43 -> 80.0% | W43: 88 | X43: 74 | Y43: 84.1%
A44: 烟花爆竹经营安管复训 | B44: 3 | C44: 3 | D44: 100.0% | W44: =B44+E44+H44+K44+N44+Q44+T44 -> 3 | X44: =C44+F44+I44+L44+O44+R44+U44 -> 3 | Y44: 100.0%
A45: 危化生产安管复训 | B45: 71 | C45: 66 | D45: 93.0% | E45: 2 | F45: 2 | G45: =F45/E45 -> 100.0% | W45: 73 | X45: 68 | Y45: 93.2%
A46: 危化经营安管复训 | B46: 97 | C46: 95 | D46: 97.9% | E46: 22 | F46: 21 | G46: 95.5% | N46: 15 | O46: 15 | P46: =O46/N46 -> 100.0% | W46: 134 | X46: 131 | Y46: 97.8%
A47: 非煤矿山安管复训 | B47: 1 | C47: 1 | D47: 100.0% | W47: =B47+E47+H47+K47+N47+Q47+T47 -> 1 | X47: =C47+F47+I47+L47+O47+R47+U47 -> 1 | Y47: 100.0%
A48: 金属冶炼安管复训
A49: 高危行业安管复训合计 | B49: =SUM(B44:B48) -> 172 | C49: 165 | D49: 95.9% | E49: 24 | F49: 23 | G49: =F49/E49 -> 95.8% | N49: =SUM(N44:N48) -> 15 | O49: 15 | P49: =O49/N49 -> 100.0% | W49: 211 | X49: 203 | Y49: 96.2%
A50: 高危行业安管人员合计 | B50: =B43+B49 -> 242 | C50: 222 | D50: 91.7% | E50: 37 | F50: 36 | G50: =F50/E50 -> 97.3% | N50: =N43+N49 -> 20 | O50: 19 | P50: 95.0% | W50: 299 | X50: 277 | Y50: 92.6%
A51: 高危行业负责人安管合计 | B51: =B37+B50 -> 364 | C51: 329 | D51: 90.4% | E51: 46 | F51: 45 | G51: 97.8% | N51: =N37+N50 -> 27 | O51: 26 | P51: 96.3% | W51: 437 | X51: 400 | Y51: 91.5%
A52: 全工种合计 | B52: =B24+B51 -> 1594 | C52: =C24+C51 -> 1315 | D52: 82.5% | E52: =E24+E51 -> 344 | F52: =F24+F51 -> 274 | G52: 79.7% | N52: =N24+N51 -> 386 | O52: =O24+O51 -> 346 | P52: 89.6% | T52: =T24+T51 -> 312 | U52: =U24+U51 -> 262 | V52: =U52/T52 -> 84.0% | W52: 2636 | X52: 2197 | Y52: 83.3%
A53: 备注： 1.考试点名称以全国安全生产培训考试信息管理系统记录为准，按系统顺序排序； 2.实考人数=报考总人数-正考补考均缺考人数-考试违规被取消成绩人数； 3.仅统计已完成考试者，还有补考机会者不统计。

Sheet 上半年
A1: 2023年上半年各考试点考生通过率统计表
A2: 培训机构 工种 | B2: 江门市安全生产知识考试点（江门市安信职业安全培训有限公司） | E2: 开平四维考试点（广东四维培训有限公司） | H2: 开平市安全生产管理协会 | K2: 江门市技师学院 | N2: 江门市新会机电职业技术学校 | Q2: 江门市新会技师学院 | T2: 鹤山市新供销协力教育咨询有限公司 | W2: 全市合计
B3: 实考人数 | C3: 合格人数 | D3: 通过率 | E3: 实考人数 | F3: 合格人数 | G3: 通过率 | H3: 实考人数 | I3: 合格人数 | J3: 通过率 | K3: 实考人数 | L3: 合格人数 | M3: 通过率 | N3: 实考人数 | O3: 合格人数 | P3: 通过率 | Q3: 实考人数 | R3: 合格人数 | S3: 通过率 | T3: 实考人数 | U3: 合格人数 | V3: 通过率 | W3: 实考人数 | X3: 合格人数 | Y3: 通过率
A4: 低压电工初训 | B4: ='2月'!B4+'3月'!B4+'4月'!B4+'5月'!B4+'6月'!B4 -> 1442 | C4: ='2月'!C4+'3月'!C4+'4月'!C4+'5月'!C4+'6月'!C4 -> 931 | D4: =C4/B4 -> 64.6% | E4: ='2月'!E4+'3月'!E4+'4月'!E4+'5月'!E4+'6月'!E4 -> 229 | F4: ='2月'!F4+'3月'!F4+'4月'!F4+'5月'!F4+'6月'!F4 -> 169 | G4: =F4/E4 -> 73.8% | N4: ='2月'!N4+'3月'!N4+'4月'!N4+'5月'!N4+'6月'!N4 -> 497 | O4: ='2月'!O4+'3月'!O4+'4月'!O4+'5月'!O4+'6月'!O4 -> 397 | P4: =O4/N4 -> 79.9% | T4: ='2月'!T4+'3月'!T4+'4月'!T4+'5月'!T4+'6月'!T4 -> 427 | U4: ='2月'!U4+'3月'!U4+'4月'!U4+'5月'!U4+'6月'!U4 -> 300 | V4: =U4/T4 -> 70.3% | W4: =B4+E4+H4+K4+N4+Q4+T4 -> 2595 | X4: 1797 | Y4: =X4/W4 -> 69.2%
A5: 高压电工初训 | E5: ='2月'!E5+'3月'!E5+'4月'!E5+'5月'!E5+'6月'!E5 -> 299 | F5: ='2月'!F5+'3月'!F5+'4月'!F5+'5月'!F5+'6月'!F5 -> 253 | G5: 84.6% | W5: 299 | X5: 253 | Y5: 84.6%
A6: 电力电缆初训 | E6: ='2月'!E6+'3月'!E6+'4月'!E6+'5月'!E6+'6月'!E6 -> 6 | F6: ='2月'!F6+'3月'!F6+'4月'!F6+'5月'!F6+'6月'!F6 -> 3 | G6: 50.0% | W6: =B6+E6+H6+K6+N6+Q6+T6 -> 6 | X6: =C6+F6+I6+L6+O6+R6+U6 -> 3 | Y6: =X6/W6 -> 50.0%
A7: 熔化焊接与热切割初训 | B7: ='2月'!B7+'3月'!B7+'4月'!B7+'5月'!B7+'6月'!B7 -> 996 | C7: ='2月'!C7+'3月'!C7+'4月'!C7+'5月'!C7+'6月'!C7 -> 819 | D7: =C7/B7 -> 82.2% | K7: ='2月'!K7+'3月'!K7+'4月'!K7+'5月'!K7+'6月'!K7 -> 50 | L7: ='2月'!L7+'3月'!L7+'4月'!L7+'5月'!L7+'6月'!L7 -> 50 | M7: =L7/K7 -> 100.0% | T7: ='2月'!T7+'3月'!T7+'4月'!T7+'5月'!T7+'6月'!T7 -> 455 | U7: ='2月'!U7+'3月'!U7+'4月'!U7+'5月'!U7+'6月'!U7 -> 366 | V7: 80.4% | W7: 1501 | X7: 1235 | Y7: 82.3%
A8: 高处安装维护拆除初训 | B8: ='2月'!B8+'3月'!B8+'4月'!B8+'5月'!B8+'6月'!B8 -> 678 | C8: ='2月'!C8+'3月'!C8+'4月'!C8+'5月'!C8+'6月'!C8 -> 597 | D8: 88.1% | E8: ='2月'!E8+'3月'!E8+'4月'!E8+'5月'!E8+'6月'!E8 -> 167 | F8: ='2月'!F8+'3月'!F8+'4月'!F8+'5月'!F8+'6月'!F8 -> 159 | G8: 95.2% | T8: ='2月'!T8+'3月'!T8+'4月'!T8+'5月'!T8+'6月'!T8 -> 216 | U8: ='2月'!U8+'3月'!U8+'4月'!U8+'5月'!U8+'6月'!U8 -> 192 | V8: 88.9% | W8: 1061 | X8: 948 | Y8: 89.3%
A9: 特种作业初训合计 | B9: =SUM(B4:B8) -> 3116 | C9: =SUM(C4:C8) -> 2347 | D9: 75.3% | E9: =SUM(E4:E8) -> 701 | F9: =SUM(F4:F8) -> 584 | G9: =F9/E9 -> 83.3% | K9: =SUM(K4:K8) -> 50 | L9: =SUM(L4:L8) -> 50 | M9: 100.0% | N9: =SUM(N4:N8) -> 497 | O9: =SUM(O4:O8) -> 397 | P9: =O9/N9 -> 79.9% | T9: =SUM(T4:T8) -> 1098 | U9: =SUM(U4:U8) -> 858 | V9: 78.1% | W9: 5462 | X9: 4236 | Y9: 77.6%
A10: 低压电工复训 | B10: ='2月'!B10+'3月'!B10+'4月'!B10+'5月'!B10+'6月'!B10 -> 1754 | C10: ='2月'!C10+'3月'!C10+'4月'!C10+'5月'!C10+'6月'!C10 -> 1717 | D10: =C10/B10 -> 97.9% | E10: ='2月'!E10+'3月'!E10+'4月'!E10+'5月'!E10+'6月'!E10 -> 319 | F10: ='2月'!F10+'3月'!F10+'4月'!F10+'5月'!F10+'6月'!F10 -> 312 | G10: 97.8% | K10: ='2月'!K10+'3月'!K10+'4月'!K10+'5月'!K10+'6月'!K10 -> 1 | L10: ='2月'!L10+'3月'!L10+'4月'!L10+'5月'!L10+'6月'!L10 -> 1 | M10: =L10/K10 -> 100.0% | N10: ='2月'!N10+'3月'!N10+'4月'!N10+'5月'!N10+'6月'!N10 -> 696 | O10: ='2月'!O10+'3月'!O10+'4月'!O10+'5月'!O10+'6月'!O10 -> 679 | P10: =O10/N10 -> 97.6% | T10: ='2月'!T10+'3月'!T10+'4月'!T10+'5月'!T10+'6月'!T10 -> 84 | U10: ='2月'!U10+'3月'!U10+'4月'!U10+'5月'!U10+'6月'!U10 -> 81 | V10: =U10/T10 -> 96.4% | W10: 2854 | X10: 2790 | Y10: 97.8%
A11: 高压电工复训 | B11: ='2月'!B11+'3月'!B11+'4月'!B11+'5月'!B11+'6月'!B11 -> 292 | C11: ='2月'!C11+'3月'!C11+'4月'!C11+'5月'!C11+'6月'!C11 -> 273 | D11: 93.5% | E11: ='2月'!E11+'3月'!E11+'4月'!E11+'5月'!E11+'6月'!E11 -> 102 | F11: ='2月'!F11+'3月'!F11+'4月'!F11+'5月'!F11+'6月'!F11 -> 87 | G11: 85.3% | N11: ='2月'!N11+'3月'!N11+'4月'!N11+'5月'!N11+'6月'!N11 -> 102 | O11: ='2月'!O11+'3月'!O11+'4月'!O11+'5月'!O11+'6月'!O11 -> 92 | P11: 90.2% | W11: 496 | X11: 452 | Y11: 91.1%
A12: 熔化焊接与热切割复训 | B12: ='2月'!B12+'3月'!B12+'4月'!B12+'5月'!B12+'6月'!B12 -> 379 | C12: ='2月'!C12+'3月'!C12+'4月'!C12+'5月'!C12+'6月'!C12 -> 362 | D12: 95.5% | E12: ='2月'!E12+'3月'!E12+'4月'!E12+'5月'!E12+'6月'!E12 -> 40 | F12: ='2月'!F12+'3月'!F12+'4月'!F12+'5月'!F12+'6月'!F12 -> 38 | G12: 95.0% | N12: ='2月'!N12+'3月'!N12+'4月'!N12+'5月'!N12+'6月'!N12 -> 109 | O12: ='2月'!O12+'3月'!O12+'4月'!O12+'5月'!O12+'6月'!O12 -> 105 | P12: 96.3% | T12: ='2月'!T12+'3月'!T12+'4月'!T12+'5月'!T12+'6月'!T12 -> 40 | U12: ='2月'!U12+'3月'!U12+'4月'!U12+'5月'!U12+'6月'!U12 -> 33 | V12: 82.5% | W12: 568 | X12: 538 | Y12: 94.7%
A13: 钎焊复训 | B13: ='2月'!B13+'3月'!B13+'4月'!B13+'5月'!B13+'6月'!B13 -> 1 | C13: ='2月'!C13+'3月'!C13+'4月'!C13+'5月'!C13+'6月'!C13 -> 1 | D13: 100.0% | W13: =B13+E13+H13+K13+N13+Q13+T13 -> 1 | X13: =C13+F13+I13+L13+O13+R13+U13 -> 1 | Y13: =X13/W13 -> 100.0%
A14: 高处安装维护拆除复训 | B14: ='2月'!B14+'3月'!B14+'4月'!B14+'5月'!B14+'6月'!B14 -> 154 | C14: ='2月'!C14+'3月'!C14+'4月'!C14+'5月'!C14+'6月'!C14 -> 144 | D14: 93.5% | E14: ='2月'!E14+'3月'!E14+'4月'!E14+'5月'!E14+'6月'!E14 -> 84 | F14: ='2月'!F14+'3月'!F14+'4月'!F14+'5月'!F14+'6月'!F14 -> 82 | G14: 97.6% | N14: ='2月'!N14+'3月'!N14+'4月'!N14+'5月'!N14+'6月'!N14 -> 68 | O14: ='2月'!O14+'3月'!O14+'4月'!O14+'5月'!O14+'6月'!O14 -> 63 | P14: 92.6% | T14: ='2月'!T14+'3月'!T14+'4月'!T14+'5月'!T14+'6月'!T14 -> 33 | U14: ='2月'!U14+'3月'!U14+'4月'!U14+'5月'!U14+'6月'!U14 -> 32 | V14: 97.0% | W14: 339 | X14: 321 | Y14: 94.7%
A15: 登高架设复训 | B15: ='2月'!B15+'3月'!B15+'4月'!B15+'5月'!B15+'6月'!B15 -> 16 | C15: ='2月'!C15+'3月'!C15+'4月'!C15+'5月'!C15+'6月'!C15 -> 16 | D15: 100.0% | T15: ='2月'!T15+'3月'!T15+'4月'!T15+'5月'!T15+'6月'!T15 -> 8 | U15: ='2月'!U15+'3月'!U15+'4月'!U15+'5月'!U15+'6月'!U15 -> 8 | V15: 100.0% | W15: =B15+E15+H15+K15+N15+Q15+T15 -> 24 | X15: =C15+F15+I15+L15+O15+R15+U15 -> 24 | Y15: 100.0%
A16: 制冷与空调运行操作复训
A17: 制冷与空调安装修理复训 | B17: ='2月'!B17+'3月'!B17+'4月'!B17+'5月'!B17+'6月'!B17 -> 4 | C17: ='2月'!C17+'3月'!C17+'4月'!C17+'5月'!C17+'6月'!C17 -> 3 | D17: 75.0% | W17: =B17+E17+H17+K17+N17+Q17+T17 -> 4 | X17: =C17+F17+I17+L17+O17+R17+U17 -> 3 | Y17: =X17/W17 -> 75.0%
A18: 矿山安检复训
A19: 电力电缆复训 | B19: ='2月'!B19+'3月'!B19+'4月'!B19+'5月'!B19+'6月'!B19 -> 4 | C19: ='2月'!C19+'3月'!C19+'4月'!C19+'5月'!C19+'6月'!C19 -> 3 | D19: 75.0% | E19: ='2月'!E19+'3月'!E19+'4月'!E19+'5月'!E19+'6月'!E19 -> 15 | F19: ='2月'!F19+'3月'!F19+'4月'!F19+'5月'!F19+'6月'!F19 -> 11 | G19: 73.3% | N19: ='2月'!N19+'3月'!N19+'4月'!N19+'5月'!N19+'6月'!N19 -> 1 | O19: ='2月'!O19+'3月'!O19+'4月'!O19+'5月'!O19+'6月'!O19 -> 0 | P19: 0.0% | W19: 20 | X19: 14 | Y19: 70.0%
A20: 电气试验复训 | B20: ='2月'!B20+'3月'!B20+'4月'!B20+'5月'!B20+'6月'!B20 -> 5 | C20: ='2月'!C20+'3月'!C20+'4月'!C20+'5月'!C20+'6月'!C20 -> 5 | D20: 100.0% | E20: ='2月'!E20+'3月'!E20+'4月'!E20+'5月'!E20+'6月'!E20 -> 9 | F20: ='2月'!F20+'3月'!F20+'4月'!F20+'5月'!F20+'6月'!F20 -> 8 | G20: 88.9% | N20: ='2月'!N20+'3月'!N20+'4月'!N20+'5月'!N20+'6月'!N20 -> 2 | O20: ='2月'!O20+'3月'!O20+'4月'!O20+'5月'!O20+'6月'!O20 -> 1 | P20: 50.0% | W20: 16 | X20: 14 | Y20: 87.5%
A21: 继电保护复训 | B21: ='2月'!B21+'3月'!B21+'4月'!B21+'5月'!B21+'6月'!B21 -> 3 | C21: ='2月'!C21+'3月'!C21+'4月'!C21+'5月'!C21+'6月'!C21 -> 3 | D21: 100.0% | E21: ='2月'!E21+'3月'!E21+'4月'!E21+'5月'!E21+'6月'!E21 -> 5 | F21: ='2月'!F21+'3月'!F21+'4月'!F21+'5月'!F21+'6月'!F21 -> 2 | G21: 40.0% | N21: ='2月'!N21+'3月'!N21+'4月'!N21+'5月'!N21+'6月'!N21 -> 1 | O21: ='2月'!O21+'3月'!O21+'4月'!O21+'5月'!O21+'6月'!O21 -> 1 | P21: 100.0% | W21: 9 | X21: 6 | Y21: 66.7%
A22: 危化操作工复训 | B22: ='2月'!B22+'3月'!B22+'4月'!B22+'5月'!B22+'6月'!B22 -> 48 | C22: ='2月'!C22+'3月'!C22+'4月'!C22+'5月'!C22+'6月'!C22 -> 47 | D22: 97.9% | W22: =B22+E22+H22+K22+N22+Q22+T22 -> 48 | X22: =C22+F22+I22+L22+O22+R22+U22 -> 47 | Y22: =X22/W22 -> 97.9%
A23: 特种作业复训合计 | B23: =SUM(B10:B22) -> 2660 | C23: 2574 | D23: 96.8% | E23: 574 | F23: 540 | G23: 94.1% | K23: =SUM(K10:K22) -> 1 | L23: 1 | M23: 100.0% | N23: =SUM(N10:N22) -> 979 | O23: 941 | P23: =O23/N23 -> 96.1% | T23: =SUM(T10:T22) -> 165 | U23: =SUM(U10:U22) -> 154 | V23: =U23/T23 -> 93.3% | W23: 4379 | X23: 4210 | Y23: 96.1%
A24: 特种作业人员合计 | B24: =B9+B23 -> 5776 | C24: =C9+C23 -> 4921 | D24: 85.2% | E24: =E9+E23 -> 1275 | F24: =F9+F23 -> 1124 | G24: 88.2% | K24: =K9+K23 -> 51 | L24: =L9+L23 -> 51 | M24: 100.0% | N24: =N9+N23 -> 1476 | O24: =O9+O23 -> 1338 | P24: 90.7% | T24: =T9+T23 -> 1263 | U24: =U9+U23 -> 1012 | V24: =U24/T24 -> 80.1% | W24: 9841 | X24: 8446 | Y24: 85.8%
A25: 烟花爆竹经营负责人初训 | B25: ='2月'!B25+'3月'!B25+'4月'!B25+'5月'!B25+'6月'!B25 -> 144 | C25: ='2月'!C25+'3月'!C25+'4月'!C25+'5月'!C25+'6月'!C25 -> 110 | D25: =C25/B25 -> 76.4% | E25: ='2月'!E25+'3月'!E25+'4月'!E25+'5月'!E25+'6月'!E25 -> 12 | F25: ='2月'!F25+'3月'!F25+'4月'!F25+'5月'!F25+'6月'!F25 -> 9 | G25: 75.0% | N25: ='2月'!N25+'3月'!N25+'4月'!N25+'5月'!N25+'6月'!N25 -> 3 | O25: ='2月'!O25+'3月'!O25+'4月'!O25+'5月'!O25+'6月'!O25 -> 3 | P25: 100.0% | W25: 159 | X25: 122 | Y25: 76.7%
A26: 危化生产负责人初训 | B26: ='2月'!B26+'3月'!B26+'4月'!B26+'5月'!B26+'6月'!B26 -> 11 | C26: ='2月'!C26+'3月'!C26+'4月'!C26+'5月'!C26+'6月'!C26 -> 10 | D26: 90.9% | W26: 11 | X26: 10 | Y26: 90.9%
A27: 危化经营负责人初训 | B27: ='2月'!B27+'3月'!B27+'4月'!B27+'5月'!B27+'6月'!B27 -> 77 | C27: ='2月'!C27+'3月'!C27+'4月'!C27+'5月'!C27+'6月'!C27 -> 74 | D27: 96.1% | E27: ='2月'!E27+'3月'!E27+'4月'!E27+'5月'!E27+'6月'!E27 -> 3 | F27: ='2月'!F27+'3月'!F27+'4月'!F27+'5月'!F27+'6月'!F27 -> 3 | G27: 100.0% | N27: ='2月'!N27+'3月'!N27+'4月'!N27+'5月'!N27+'6月'!N27 -> 1 | O27: ='2月'!O27+'3月'!O27+'4月'!O27+'5月'!O27+'6月'!O27 -> 1 | P27: 100.0% | W27: 81 | X27: 78 | Y27: 96.3%
A28: 非煤矿山负责人初训 | B28: ='2月'!B28+'3月'!B28+'4月'!B28+'5月'!B28+'6月'!B28 -> 4 | C28: ='2月'!C28+'3月'!C28+'4月'!C28+'5月'!C28+'6月'!C28 -> 4 | D28: 100.0% | W28: 4 | X28: 4 | Y28: 100.0%
A29: 金属冶炼负责人初训 | B29: ='2月'!B29+'3月'!B29+'4月'!B29+'5月'!B29+'6月'!B29 -> 7 | C29: ='2月'!C29+'3月'!C29+'4月'!C29+'5月'!C29+'6月'!C29 -> 7 | D29: 100.0% | W29: 7 | X29: 7 | Y29: 100.0%
A30: 高危行业负责人初训合计 | B30: =SUM(B25:B29) -> 243 | C30: 205 | D30: 84.4% | E30: 15 | F30: 12 | G30: =F30/E30 -> 80.0% | N30: =SUM(N25:N29) -> 4 | O30: 4 | P30: =O30/N30 -> 100.0% | W30: 262 | X30: 221 | Y30: 84.4%
A31: 烟花爆竹经营负责人复训 | B31: ='2月'!B31+'3月'!B31+'4月'!B31+'5月'!B31+'6月'!B31 -> 31 | C31: ='2月'!C31+'3月'!C31+'4月'!C31+'5月'!C31+'6月'!C31 -> 28 | D31: =C31/B31 -> 90.3% | W31: =B31+E31+H31+K31+N31+Q31+T31 -> 31 | X31: =C31+F31+I31+L31+O31+R31+U31 -> 28 | Y31: 90.3%
A32: 危化生产负责人复训 | B32: ='2月'!B32+'3月'!B32+'4月'!B32+'5月'!B32+'6月'!B32 -> 85 | C32: ='2月'!C32+'3月'!C32+'4月'!C32+'5月'!C32+'6月'!C32 -> 83 | D32: 97.6% | E32: ='2月'!E32+'3月'!E32+'4月'!E32+'5月'!E32+'6月'!E32 -> 3 | F32: ='2月'!F32+'3月'!F32+'4月'!F32+'5月'!F32+'6月'!F32 -> 3 | G32: =F32/E32 -> 100.0% | N32: ='2月'!N32+'3月'!N32+'4月'!N32+'5月'!N32+'6月'!N32 -> 2 | O32: ='2月'!O32+'3月'!O32+'4月'!O32+'5月'!O32+'6月'!O32 -> 2 | P32: =O32/N32 -> 100.0% | W32: 90 | X32: 88 | Y32: 97.8%
A33: 危化经营负责人复训 | B33: ='2月'!B33+'3月'!B33+'4月'!B33+'5月'!B33+'6月'!B33 -> 268 | C33: ='2月'!C33+'3月'!C33+'4月'!C33+'5月'!C33+'6月'!C33 -> 259 | D33: 96.6% | E33: ='2月'!E33+'3月'!E33+'4月'!E33+'5月'!E33+'6月'!E33 -> 8 | F33: ='2月'!F33+'3月'!F33+'4月'!F33+'5月'!F33+'6月'!F33 -> 8 | G33: 100.0% | N33: ='2月'!N33+'3月'!N33+'4月'!N33+'5月'!N33+'6月'!N33 -> 20 | O33: ='2月'!O33+'3月'!O33+'4月'!O33+'5月'!O33+'6月'!O33 -> 20 | P33: 100.0% | W33: 296 | X33: 287 | Y33: 97.0%
A34: 非煤矿山负责人复训 | B34: ='2月'!B34+'3月'!B34+'4月'!B34+'5月'!B34+'6月'!B34 -> 11 | C34: ='2月'!C34+'3月'!C34+'4月'!C34+'5月'!C34+'6月'!C34 -> 11 | D34: 100.0% | W34: =B34+E34+H34+K34+N34+Q34+T34 -> 11 | X34: =C34+F34+I34+L34+O34+R34+U34 -> 11 | Y34: 100.0%
A35: 金属冶炼负责人复训 | B35: ='2月'!B35+'3月'!B35+'4月'!B35+'5月'!B35+'6月'!B35 -> 9 | C35: ='2月'!C35+'3月'!C35+'4月'!C35+'5月'!C35+'6月'!C35 -> 9 | D35: 100.0% | W35: =B35+E35+H35+K35+N35+Q35+T35 -> 9 | X35: =C35+F35+I35+L35+O35+R35+U35 -> 9 | Y35: =X35/W35 -> 100.0%
A36: 高危行业负责人复训合计 | B36: =SUM(B31:B35) -> 404 | C36: 390 | D36: 96.5% | E36: 11 | F36: 11 | G36: 100.0% | N36: =SUM(N31:N35) -> 22 | O36: =SUM(O31:O35) -> 22 | P36: =O36/N36 -> 100.0% | W36: 437 | X36: 423 | Y36: 96.8%
A37: 高危行业主要负责人合计 | B37: =B30+B36 -> 647 | C37: 595 | D37: 92.0% | E37: 26 | F37: 23 | G37: =F37/E37 -> 88.5% | N37: =N30+N36 -> 26 | O37: 26 | P37: =O37/N37 -> 100.0% | W37: 699 | X37: 644 | Y37: 92.1%
A38: 烟花爆竹经营安管初训 | B38: ='2月'!B38+'3月'!B38+'4月'!B38+'5月'!B38+'6月'!B38 -> 124 | C38: ='2月'!C38+'3月'!C38+'4月'!C38+'5月'!C38+'6月'!C38 -> 98 | D38: =C38/B38 -> 79.0% | E38: ='2月'!E38+'3月'!E38+'4月'!E38+'5月'!E38+'6月'!E38 -> 12 | F38: ='2月'!F38+'3月'!F38+'4月'!F38+'5月'!F38+'6月'!F38 -> 8 | G38: 66.7% | N38: ='2月'!N38+'3月'!N38+'4月'!N38+'5月'!N38+'6月'!N38 -> 5 | O38: ='2月'!O38+'3月'!O38+'4月'!O38+'5月'!O38+'6月'!O38 -> 4 | P38: =O38/N38 -> 80.0% | W38: 141 | X38: 110 | Y38: 78.0%
A39: 危化生产安管初训 | B39: ='2月'!B39+'3月'!B39+'4月'!B39+'5月'!B39+'6月'!B39 -> 67 | C39: ='2月'!C39+'3月'!C39+'4月'!C39+'5月'!C39+'6月'!C39 -> 62 | D39: 92.5% | W39: 67 | X39: 62 | Y39: 92.5%
A40: 危化经营安管初训 | B40: ='2月'!B40+'3月'!B40+'4月'!B40+'5月'!B40+'6月'!B40 -> 278 | C40: ='2月'!C40+'3月'!C40+'4月'!C40+'5月'!C40+'6月'!C40 -> 210 | D40: 75.5% | E40: ='2月'!E40+'3月'!E40+'4月'!E40+'5月'!E40+'6月'!E40 -> 13 | F40: ='2月'!F40+'3月'!F40+'4月'!F40+'5月'!F40+'6月'!F40 -> 13 | G40: 100.0% | N40: ='2月'!N40+'3月'!N40+'4月'!N40+'5月'!N40+'6月'!N40 -> 6 | O40: ='2月'!O40+'3月'!O40+'4月'!O40+'5月'!O40+'6月'!O40 -> 5 | P40: 83.3% | W40: 297 | X40: 228 | Y40: 76.8%
A41: 非煤矿山安管初训 | B41: ='2月'!B41+'3月'!B41+'4月'!B41+'5月'!B41+'6月'!B41 -> 12 | C41: ='2月'!C41+'3月'!C41+'4月'!C41+'5月'!C41+'6月'!C41 -> 11 | D41: 91.7% | E41: ='2月'!E41+'3月'!E41+'4月'!E41+'5月'!E41+'6月'!E41 -> 10 | F41: ='2月'!F41+'3月'!F41+'4月'!F41+'5月'!F41+'6月'!F41 -> 10 | G41: 100.0% | W41: =B41+E41+H41+K41+N41+Q41+T41 -> 22 | X41: =C41+F41+I41+L41+O41+R41+U41 -> 21 | Y41: 95.5%
A42: 金属冶炼安管初训 | B42: ='2月'!B42+'3月'!B42+'4月'!B42+'5月'!B42+'6月'!B42 -> 23 | C42: ='2月'!C42+'3月'!C42+'4月'!C42+'5月'!C42+'6月'!C42 -> 19 | D42: 82.6% | E42: ='2月'!E42+'3月'!E42+'4月'!E42+'5月'!E42+'6月'!E42 -> 2 | F42: ='2月'!F42+'3月'!F42+'4月'!F42+'5月'!F42+'6月'!F42 -> 2 | G42: 100.0% | W42: =B42+E42+H42+K42+N42+Q42+T42 -> 25 | X42: =C42+F42+I42+L42+O42+R42+U42 -> 21 | Y42: =X42/W42 -> 84.0%
A43: 高危行业安管初训合计 | B43: =SUM(B38:B42) -> 504 | C43: 400 | D43: 79.4% | E43: 37 | F43: 33 | G43: =F43/E43 -> 89.2% | N43: =SUM(N38:N42) -> 11 | O43: 9 | P43: =O43/N43 -> 81.8% | W43: 552 | X43: 442 | Y43: 80.1%
A44: 烟花爆竹经营安管复训 | B44: ='2月'!B44+'3月'!B44+'4月'!B44+'5月'!B44+'6月'!B44 -> 14 | C44: ='2月'!C44+'3月'!C44+'4月'!C44+'5月'!C44+'6月'!C44 -> 14 | D44: =C44/B44 -> 100.0% | W44: =B44+E44+H44+K44+N44+Q44+T44 -> 14 | X44: =C44+F44+I44+L44+O44+R44+U44 -> 14 | Y44: 100.0%
A45: 危化生产安管复训 | B45: ='2月'!B45+'3月'!B45+'4月'!B45+'5月'!B45+'6月'!B45 -> 174 | C45: ='2月'!C45+'3月'!C45+'4月'!C45+'5月'!C45+'6月'!C45 -> 167 | D45: 96.0% | E45: ='2月'!E45+'3月'!E45+'4月'!E45+'5月'!E45+'6月'!E45 -> 4 | F45: ='2月'!F45+'3月'!F45+'4月'!F45+'5月'!F45+'6月'!F45 -> 4 | G45: 100.0% | N45: ='2月'!N45+'3月'!N45+'4月'!N45+'5月'!N45+'6月'!N45 -> 1 | O45: ='2月'!O45+'3月'!O45+'4月'!O45+'5月'!O45+'6月'!O45 -> 1 | P45: 100.0% | W45: 179 | X45: 172 | Y45: 96.1%
A46: 危化经营安管复训 | B46: ='2月'!B46+'3月'!B46+'4月'!B46+'5月'!B46+'6月'!B46 -> 421 | C46: ='2月'!C46+'3月'!C46+'4月'!C46+'5月'!C46+'6月'!C46 -> 394 | D46: 93.6% | E46: ='2月'!E46+'3月'!E46+'4月'!E46+'5月'!E46+'6月'!E46 -> 27 | F46: ='2月'!F46+'3月'!F46+'4月'!F46+'5月'!F46+'6月'!F46 -> 26 | G46: 96.3% | N46: ='2月'!N46+'3月'!N46+'4月'!N46+'5月'!N46+'6月'!N46 -> 27 | O46: ='2月'!O46+'3月'!O46+'4月'!O46+'5月'!O46+'6月'!O46 -> 27 | P46: 100.0% | W46: 475 | X46: 447 | Y46: 94.1%
A47: 非煤矿山安管复训 | B47: ='2月'!B47+'3月'!B47+'4月'!B47+'5月'!B47+'6月'!B47 -> 22 | C47: ='2月'!C47+'3月'!C47+'4月'!C47+'5月'!C47+'6月'!C47 -> 21 | D47: 95.5% | W47: =B47+E47+H47+K47+N47+Q47+T47 -> 22 | X47: =C47+F47+I47+L47+O47+R47+U47 -> 21 | Y47: 95.5%
A48: 金属冶炼安管复训 | B48: ='2月'!B48+'3月'!B48+'4月'!B48+'5月'!B48+'6月'!B48 -> 14 | C48: ='2月'!C48+'3月'!C48+'4月'!C48+'5月'!C48+'6月'!C48 -> 14 | D48: 100.0% | W48: =B48+E48+H48+K48+N48+Q48+T48 -> 14 | X48: =C48+F48+I48+L48+O48+R48+U48 -> 14 | Y48: =X48/W48 -> 100.0%
A49: 高危行业安管复训合计 | B49: =SUM(B44:B48) -> 645 | C49: 610 | D49: 94.6% | E49: 31 | F49: 30 | G49: 96.8% | N49: =SUM(N44:N48) -> 28 | O49: 28 | P49: =O49/N49 -> 100.0% | W49: 704 | X49: 668 | Y49: 94.9%
A50: 高危行业安管人员合计 | B50: =B43+B49 -> 1149 | C50: 1010 | D50: 87.9% | E50: 68 | F50: 63 | G50: =F50/E50 -> 92.6% | N50: =N43+N49 -> 39 | O50: 37 | P50: 94.9% | W50: 1256 | X50: 1110 | Y50: 88.4%
A51: 高危行业负责人安管合计 | B51: =B37+B50 -> 1796 | C51: 1605 | D51: 89.4% | E51: 94 | F51: 86 | G51: 91.5% | N51: =N37+N50 -> 65 | O51: 63 | P51: 96.9% | W51: 1955 | X51: 1754 | Y51: 89.7%
A52: 全工种合计 | B52: =B24+B51 -> 7572 | C52: =C24+C51 -> 6526 | D52: 86.2% | E52: =E24+E51 -> 1369 | F52: =F24+F51 -> 1210 | G52: 88.4% | K52: =K24+K51 -> 51 | L52: =L24+L51 -> 51 | M52: =L52/K52 -> 100.0% | N52: =N24+N51 -> 1541 | O52: =O24+O51 -> 1401 | P52: 90.9% | T52: =T24+T51 -> 1263 | U52: =U24+U51 -> 1012 | V52: =U52/T52 -> 80.1% | W52: 11796 | X52: 10200 | Y52: 86.5%
A53: 备注： 1.考试点名称以全国安全生产培训考试信息管理系统记录为准，按系统顺序排序； 2.实考人数=报考总人数-正考补考均缺考人数-考试违规被取消成绩人数； 3.仅统计已完成考试者，还有补考机会者不统计。
